{"text_format":"3","workbook":"xlsx","n_sheets":4,"sheets":["Start","Budżet ślubny","Strój-Wesele-Muzyka-Zdjęcia","Dekoracje-Kwiaty-Prezent-Podróż"],"not_rendered":{"charts":1,"defined_names":22},"read":"whole","date_system":"1900"}

{"sheet":"Start","index":0,"n_rows":7,"n_cols":2,"rows_kept":7}
[null,"INFORMACJE O TYM SZABLONIE"]
[null,"Użyj tego szablonu do śledzenia wydatków na ślub."]
[null,"Wprowadź szacowane i rzeczywiste koszty w różnych kategoriach w oddzielnych arkuszach."]
[null,"Podsumowanie budżetu ślubnego i wykres są aktualizowane automatycznie."]
[null,"Uwaga: "]
[null,"W kolumnie A w każdym arkuszu podano dodatkowe instrukcje. Ten tekst celowo został ukryty. Aby usunąć tekst, zaznacz kolumnę A, a następnie naciśnij klawisz DELETE. Aby odkryć tekst, zaznacz kolumnę A, a następnie zmień kolor czcionki."]
[null,"Aby uzyskać więcej informacji o tabelach, w tabeli naciśnij klawisz SHIFT, a następnie F10, wybierz opcję TABELA, a następnie TEKST ALTERNATYWNY."]

{"sheet":"Budżet ślubny","index":1,"n_rows":19,"n_cols":6,"rows_kept":19,"merged":[[2,2,4,5],[18,2,42,5]]}
["W tym arkuszu utwórz budżet ślubny. Wprowadź dane w tabelach w arkuszu Strój-Wesele-Muzyka-Zdjęcia i arkuszu Dekoracje-Kwiaty-Prezent-Podróż, aby zaktualizować podsumowanie i wykres w bieżącym arkuszu. W komórkach w tej kolumnie podano przydatne instrukcje na temat korzystania z tego arkusza. Etykieta Data ślubu znajduje się w komórce C1.",null,"Data ślubu:"]
["W komórce C2 wprowadź datę ślubu. Liczba Pozostało dni jest obliczana automatycznie w komórce E2.",null,{"$f":"TODAY()+365","v":"2019-12-04"},"Pozostało dni:",{"$f":"C2-TODAY()","v":365}]
["Tytuł tego arkusza znajduje się w komórce C3. Dalsze instrukcje znajdują się w komórce A6.",null,"Podsumowanie budżetu ślubnego"]
[]
[]
["Tabela podsumowanie budżetu rozpoczynająca się w komórce C6 jest aktualizowana automatycznie. Dalsze instrukcje znajdują się w komórce A19.",null,"KATEGORIA","SZACOWANE","RZECZYWISTE","POWYŻEJ/PONIŻEJ"]
[null,null,"Stroje",{"$f":"Strój_Suma_szac","v":{"v":9490,"d":"9,490.00"}},{"$f":"Strój_Suma_rzecz","v":{"v":9770,"d":"9,770.00"}},{"$f":"Podsumowanie_budżetu[[#This Row],[SZACOWANE]]-Podsumowanie_budżetu[[#This Row],[RZECZYWISTE]]","v":{"v":-280,"d":"-280.00"}}]
[null,null,"Wesele",{"$f":"Wesele_Suma_szac","v":{"v":1050,"d":"1,050.00"}},{"$f":"Wesele_Suma_rzecz","v":{"v":928,"d":"928.00"}},{"$f":"Podsumowanie_budżetu[[#This Row],[SZACOWANE]]-Podsumowanie_budżetu[[#This Row],[RZECZYWISTE]]","v":{"v":122,"d":"122.00"}}]
[null,null,"Muzyka",{"$f":"Muzyka_Rozrywka_Suma_szac","v":{"v":600,"d":"600.00"}},{"$f":"Muzyka_Rozrywka_Suma_rzecz","v":{"v":400,"d":"400.00"}},{"$f":"Podsumowanie_budżetu[[#This Row],[SZACOWANE]]-Podsumowanie_budżetu[[#This Row],[RZECZYWISTE]]","v":{"v":200,"d":"200.00"}}]
[null,null,"Drukowanie",{"$f":"Drukowanie__Papeteria_Suma_szac","v":{"v":935,"d":"935.00"}},{"$f":"Drukowanie__Papeteria_Suma_rzecz","v":{"v":870,"d":"870.00"}},{"$f":"Podsumowanie_budżetu[[#This Row],[SZACOWANE]]-Podsumowanie_budżetu[[#This Row],[RZECZYWISTE]]","v":{"v":65,"d":"65.00"}}]
[null,null,"Fotografie",{"$f":"Fotografie_Suma_szac","v":{"v":1625,"d":"1,625.00"}},{"$f":"Fotografie_Suma_rzecz","v":{"v":1575,"d":"1,575.00"}},{"$f":"Podsumowanie_budżetu[[#This Row],[SZACOWANE]]-Podsumowanie_budżetu[[#This Row],[RZECZYWISTE]]","v":{"v":50,"d":"50.00"}}]
[null,null,"Dekoracje",{"$f":"Dekoracje_Suma_szac","v":{"v":700,"d":"700.00"}},{"$f":"Dekoracje_Suma_rzecz","v":{"v":720,"d":"720.00"}},{"$f":"Podsumowanie_budżetu[[#This Row],[SZACOWANE]]-Podsumowanie_budżetu[[#This Row],[RZECZYWISTE]]","v":{"v":-20,"d":"-20.00"}}]
[null,null,"Kwiaty",{"$f":"Kwiaty_Suma_szac","v":{"v":900,"d":"900.00"}},{"$f":"Kwiaty_Suma_rzecz","v":{"v":850,"d":"850.00"}},{"$f":"Podsumowanie_budżetu[[#This Row],[SZACOWANE]]-Podsumowanie_budżetu[[#This Row],[RZECZYWISTE]]","v":{"v":50,"d":"50.00"}}]
[null,null,"Prezenty",{"$f":"Prezenty_Suma_szac","v":{"v":1345,"d":"1,345.00"}},{"$f":"Prezenty_Suma_rzecz","v":{"v":1075,"d":"1,075.00"}},{"$f":"Podsumowanie_budżetu[[#This Row],[SZACOWANE]]-Podsumowanie_budżetu[[#This Row],[RZECZYWISTE]]","v":{"v":270,"d":"270.00"}}]
[null,null,"Przejazdy",{"$f":"Podróże_Transport_Suma_szac","v":{"v":100,"d":"100.00"}},{"$f":"Podróże_Transport_Suma_rzecz","v":{"v":165,"d":"165.00"}},{"$f":"Podsumowanie_budżetu[[#This Row],[SZACOWANE]]-Podsumowanie_budżetu[[#This Row],[RZECZYWISTE]]","v":{"v":-65,"d":"-65.00"}}]
[null,null,"Inne",{"$f":"Inne_Wydatki_Suma_szac","v":{"v":885,"d":"885.00"}},{"$f":"Inne_Wydatki_Suma_rzecz","v":{"v":1021,"d":"1,021.00"}},{"$f":"Podsumowanie_budżetu[[#This Row],[SZACOWANE]]-Podsumowanie_budżetu[[#This Row],[RZECZYWISTE]]","v":{"v":-136,"d":"-136.00"}}]
[null,null,"Suma wydatków",{"$f":"SUBTOTAL(109,Podsumowanie_budżetu[SZACOWANE])","v":{"v":17630,"d":"17,630.00"}},{"$f":"SUBTOTAL(109,Podsumowanie_budżetu[RZECZYWISTE])","v":{"v":17374,"d":"17,374.00"}},{"$f":"SUBTOTAL(109,Podsumowanie_budżetu[POWYŻEJ/PONIŻEJ])","v":{"v":256,"d":"256.00"}}]
[]
["Wykres kołowy w komórce C19 jest aktualizowany automatycznie.",null,"W tej komórce znajduje się wykres kołowy przedstawiający udział procentowy wydatków z każdej kategorii."]

{"sheet":"Strój-Wesele-Muzyka-Zdjęcia","index":2,"n_rows":56,"n_cols":6,"rows_kept":56,"merged":[[16,1,16,4],[28,1,28,4],[29,1,29,4],[35,1,35,4],[48,1,48,4]]}
["Wprowadź szacowane i rzeczywiste koszty dla każdej kategorii w odpowiednich tabelach w tym arkuszu. Kwota różnicy względem budżetu jest obliczana automatycznie. Etykieta Stroje znajduje się w komórce z prawej strony. W komórkach w tej kolumnie podano przydatne instrukcje na temat korzystania z tego arkusza. Naciśnij klawisz Strzałka w dół, aby rozpocząć.","Stroje",{"$nulls":3}," "]
[" Wprowadź szczegóły w tabeli Stroje, zaczynając od komórki z prawej strony. Dalsze instrukcje znajdują się w komórce A18.","KATEGORIA","SZACOWANE","RZECZYWISTE","POWYŻEJ/PONIŻEJ"," "]
[null,"Pierścionek zaręczynowy",{"v":1500,"d":"1,500.00"},{"v":1500,"d":"1,500.00"},{"$f":"'Strój-Wesele-Muzyka-Zdjęcia'!$C3-'Strój-Wesele-Muzyka-Zdjęcia'!$D3","v":{"v":0,"d":"0.00"}}]
[null,"Obrączka panny młodej",{"v":2000,"d":"2,000.00"},{"v":2300,"d":"2,300.00"},{"$f":"'Strój-Wesele-Muzyka-Zdjęcia'!$C4-'Strój-Wesele-Muzyka-Zdjęcia'!$D4","v":{"v":-300,"d":"-300.00 "}}]
[null,"Suknia panny młodej",{"v":3000,"d":"3,000.00"},{"v":2750,"d":"2,750.00"},{"$f":"'Strój-Wesele-Muzyka-Zdjęcia'!$C5-'Strój-Wesele-Muzyka-Zdjęcia'!$D5","v":{"v":250,"d":"250.00"}}]
[null,"Welon panny młodej",{"v":500,"d":"500.00"},{"v":500,"d":"500.00"},{"$f":"'Strój-Wesele-Muzyka-Zdjęcia'!$C6-'Strój-Wesele-Muzyka-Zdjęcia'!$D6","v":{"v":0,"d":"0.00"}}]
[null,"Buty panny młodej",{"v":350,"d":"350.00"},{"v":300,"d":"300.00"},{"$f":"'Strój-Wesele-Muzyka-Zdjęcia'!$C7-'Strój-Wesele-Muzyka-Zdjęcia'!$D7","v":{"v":50,"d":"50.00"}}]
[null,"Biżuteria panny młodej",{"v":400,"d":"400.00"},{"v":550,"d":"550.00"},{"$f":"'Strój-Wesele-Muzyka-Zdjęcia'!$C8-'Strój-Wesele-Muzyka-Zdjęcia'!$D8","v":{"v":-150,"d":"-150.00 "}}]
[null,"Pończochy panny młodej",{"v":20,"d":"20.00"},{"v":20,"d":"20.00"},{"$f":"'Strój-Wesele-Muzyka-Zdjęcia'!$C9-'Strój-Wesele-Muzyka-Zdjęcia'!$D9","v":{"v":0,"d":"0.00"}}]
[null,"Obrączka pana młodego",{"v":300,"d":"300.00"},{"v":250,"d":"250.00"},{"$f":"'Strój-Wesele-Muzyka-Zdjęcia'!$C10-'Strój-Wesele-Muzyka-Zdjęcia'!$D10","v":{"v":50,"d":"50.00"}}]
[null,"Garnitur pana młodego",{"v":300,"d":"300.00"},{"v":350,"d":"350.00"},{"$f":"'Strój-Wesele-Muzyka-Zdjęcia'!$C11-'Strój-Wesele-Muzyka-Zdjęcia'!$D11","v":{"v":-50,"d":"-50.00 "}}]
[null,"Nakrycie głowy pana młodego",{"v":500,"d":"500.00"},{"v":500,"d":"500.00"},{"$f":"'Strój-Wesele-Muzyka-Zdjęcia'!$C12-'Strój-Wesele-Muzyka-Zdjęcia'!$D12","v":{"v":0,"d":"0.00"}}]
[null,"Buty pana młodego",{"v":200,"d":"200.00"},{"v":175,"d":"175.00"},{"$f":"'Strój-Wesele-Muzyka-Zdjęcia'!$C13-'Strój-Wesele-Muzyka-Zdjęcia'!$D13","v":{"v":25,"d":"25.00"}}]
[null,"Biżuteria pana młodego",{"v":400,"d":"400.00"},{"v":550,"d":"550.00"},{"$f":"'Strój-Wesele-Muzyka-Zdjęcia'!$C14-'Strój-Wesele-Muzyka-Zdjęcia'!$D14","v":{"v":-150,"d":"-150.00 "}}]
[null,"Skarpety pana młodego",{"v":20,"d":"20.00"},{"v":25,"d":"25.00"},{"$f":"'Strój-Wesele-Muzyka-Zdjęcia'!$C15-'Strój-Wesele-Muzyka-Zdjęcia'!$D15","v":{"v":-5,"d":"-5.00 "}}]
[null,"Stroje — suma",{"$f":"SUBTOTAL(109,Stroje[SZACOWANE])","v":{"v":9490,"d":"9,490.00"}},{"$f":"SUBTOTAL(109,Stroje[RZECZYWISTE])","v":{"v":9770,"d":"9,770.00"}},{"$f":"SUBTOTAL(109,Stroje[POWYŻEJ/PONIŻEJ])","v":{"v":-280,"d":"-280.00 "}}]
[]
["Etykieta Wesele znajduje się w komórce z prawej strony.","Wesele*"]
["Wprowadź koszty wesela (oprócz kosztów rozrywki i dekoracji) w tabeli, zaczynając od komórki z prawej strony. Dalsze instrukcje znajdują się w komórce A31.","KATEGORIA","SZACOWANE","RZECZYWISTE","POWYŻEJ/PONIŻEJ"]
[null,"Opłata za salę",{"v":200,"d":"200.00"},{"v":150,"d":"150.00"},{"$f":"'Strój-Wesele-Muzyka-Zdjęcia'!$C20-'Strój-Wesele-Muzyka-Zdjęcia'!$D20","v":{"v":50,"d":"50.00"}}]
[null,"Stoły i krzesła",{"v":100,"d":"100.00"},{"v":50,"d":"50.00"},{"$f":"'Strój-Wesele-Muzyka-Zdjęcia'!$C21-'Strój-Wesele-Muzyka-Zdjęcia'!$D21","v":{"v":50,"d":"50.00"}}]
[null,"Jedzenie",{"v":0,"d":"0.00"},{"v":0,"d":"0.00"},{"$f":"'Strój-Wesele-Muzyka-Zdjęcia'!$C22-'Strój-Wesele-Muzyka-Zdjęcia'!$D22","v":{"v":0,"d":"0.00"}}]
[null,"Napoje",{"v":0,"d":"0.00"},{"v":0,"d":"0.00"},{"$f":"'Strój-Wesele-Muzyka-Zdjęcia'!$C23-'Strój-Wesele-Muzyka-Zdjęcia'!$D23","v":{"v":0,"d":"0.00"}}]
[null,"Obrusy",{"v":0,"d":"0.00"},{"v":0,"d":"0.00"},{"$f":"'Strój-Wesele-Muzyka-Zdjęcia'!$C24-'Strój-Wesele-Muzyka-Zdjęcia'!$D24","v":{"v":0,"d":"0.00"}}]
[null,"Tort",{"v":700,"d":"700.00"},{"v":700,"d":"700.00"},{"$f":"'Strój-Wesele-Muzyka-Zdjęcia'!$C25-'Strój-Wesele-Muzyka-Zdjęcia'!$D25","v":{"v":0,"d":"0.00"}}]
[null,"Usługi specjalne",{"v":50,"d":"50.00"},{"v":28,"d":"28.00"},{"$f":"'Strój-Wesele-Muzyka-Zdjęcia'!$C26-'Strój-Wesele-Muzyka-Zdjęcia'!$D26","v":{"v":22,"d":"22.00"}}]
[null,"Personel i napiwki",{"v":0,"d":"0.00"},{"v":0,"d":"0.00"},{"$f":"'Strój-Wesele-Muzyka-Zdjęcia'!$C27-'Strój-Wesele-Muzyka-Zdjęcia'!$D27","v":{"v":0,"d":"0.00"}}]
[null,"Wesele — suma",{"$f":"SUBTOTAL(109,Wesele[SZACOWANE])","v":{"v":1050,"d":"1,050.00"}},{"$f":"SUBTOTAL(109,Wesele[RZECZYWISTE])","v":{"v":928,"d":"928.00"}},{"$f":"SUBTOTAL(109,Wesele[POWYŻEJ/PONIŻEJ])","v":{"v":122,"d":"122.00"}}]
[null,"* Oprócz rozrywki i dekoracji"]
[]
["Etykieta Muzyka lub rozrywka znajduje się w komórce z prawej strony.","Muzyka/rozrywka"]
["Wprowadź szczegóły w tabeli Muzyka, zaczynając od komórki z prawej strony. Dalsze instrukcje znajdują się w komórce A37.","KATEGORIA","SZACOWANE","RZECZYWISTE","POWYŻEJ/PONIŻEJ"]
[null,"Muzycy na ślub",{"v":400,"d":"400.00"},{"v":400,"d":"400.00"},{"$f":"'Strój-Wesele-Muzyka-Zdjęcia'!$C33-'Strój-Wesele-Muzyka-Zdjęcia'!$D33","v":{"v":0,"d":"0.00"}}]
[null,"Zespół/DJ na wesele",{"v":200,"d":"200.00"},{"v":0,"d":"0.00"},{"$f":"'Strój-Wesele-Muzyka-Zdjęcia'!$C34-'Strój-Wesele-Muzyka-Zdjęcia'!$D34","v":{"v":200,"d":"200.00"}}]
[null,"Muzyka/rozrywka — suma",{"$f":"SUBTOTAL(109,Muzyka[SZACOWANE])","v":{"v":600,"d":"600.00"}},{"$f":"SUBTOTAL(109,Muzyka[RZECZYWISTE])","v":{"v":400,"d":"400.00"}},{"$f":"SUBTOTAL(109,Muzyka[POWYŻEJ/PONIŻEJ])","v":{"v":200,"d":"200.00"}}]
[]
["Etykieta Drukowanie lub papeteria znajduje się w komórce z prawej strony.","Drukowanie/papeteria"]
["Wprowadź szczegóły w tabeli Drukowanie, zaczynając od komórki z prawej strony. Dalsze instrukcje znajdują się w komórce A50.","KATEGORIA","SZACOWANE","RZECZYWISTE","POWYŻEJ/PONIŻEJ"]
[null,"Zaproszenia",{"v":500,"d":"500.00"},{"v":450,"d":"450.00"},{"$f":"'Strój-Wesele-Muzyka-Zdjęcia'!$C39-'Strój-Wesele-Muzyka-Zdjęcia'!$D39","v":{"v":50,"d":"50.00"}}]
[null,"Ogłoszenia",{"v":200,"d":"200.00"},{"v":175,"d":"175.00"},{"$f":"'Strój-Wesele-Muzyka-Zdjęcia'!$C40-'Strój-Wesele-Muzyka-Zdjęcia'!$D40","v":{"v":25,"d":"25.00"}}]
[null,"Kartki z podziękowaniami",{"v":100,"d":"100.00"},{"v":100,"d":"100.00"},{"$f":"'Strój-Wesele-Muzyka-Zdjęcia'!$C41-'Strój-Wesele-Muzyka-Zdjęcia'!$D41","v":{"v":0,"d":"0.00"}}]
[null,"Papeteria osobista",{"v":0,"d":"0.00"},{"v":0,"d":"0.00"},{"$f":"'Strój-Wesele-Muzyka-Zdjęcia'!$C42-'Strój-Wesele-Muzyka-Zdjęcia'!$D42","v":{"v":0,"d":"0.00"}}]
[null,"Księga gości",{"v":25,"d":"25.00"},{"v":25,"d":"25.00"},{"$f":"'Strój-Wesele-Muzyka-Zdjęcia'!$C43-'Strój-Wesele-Muzyka-Zdjęcia'!$D43","v":{"v":0,"d":"0.00"}}]
[null,"Programy",{"v":75,"d":"75.00"},{"v":80,"d":"80.00"},{"$f":"'Strój-Wesele-Muzyka-Zdjęcia'!$C44-'Strój-Wesele-Muzyka-Zdjęcia'!$D44","v":{"v":-5,"d":"-5.00 "}}]
[null,"Serwetki",{"v":35,"d":"35.00"},{"v":40,"d":"40.00"},{"$f":"'Strój-Wesele-Muzyka-Zdjęcia'!$C45-'Strój-Wesele-Muzyka-Zdjęcia'!$D45","v":{"v":-5,"d":"-5.00 "}}]
[null,"Zapałki",{"v":0,"d":"0.00"},{"v":0,"d":"0.00"},{"$f":"'Strój-Wesele-Muzyka-Zdjęcia'!$C46-'Strój-Wesele-Muzyka-Zdjęcia'!$D46","v":{"v":0,"d":"0.00"}}]
[null,"Kaligrafia",{"v":0,"d":"0.00"},{"v":0,"d":"0.00"},{"$f":"'Strój-Wesele-Muzyka-Zdjęcia'!$C47-'Strój-Wesele-Muzyka-Zdjęcia'!$D47","v":{"v":0,"d":"0.00"}}]
[null,"Drukowanie/papeteria — suma",{"$f":"SUBTOTAL(109,Drukowanie[SZACOWANE])","v":{"v":935,"d":"935.00"}},{"$f":"SUBTOTAL(109,Drukowanie[RZECZYWISTE])","v":{"v":870,"d":"870.00"}},{"$f":"SUBTOTAL(109,Drukowanie[POWYŻEJ/PONIŻEJ])","v":{"v":65,"d":"65.00"}}]
[]
["Etykieta Fotografie znajduje się w komórce z prawej strony.","Fotografie"]
["Wprowadź szczegóły w tabeli Fotografie, zaczynając od komórki z prawej strony.","KATEGORIA","SZACOWANE","RZECZYWISTE","POWYŻEJ/PONIŻEJ"]
[null,"Oficjalne",{"v":1300,"d":"1,300.00"},{"v":1300,"d":"1,300.00"},{"$f":"'Strój-Wesele-Muzyka-Zdjęcia'!$C52-'Strój-Wesele-Muzyka-Zdjęcia'!$D52","v":{"v":0,"d":"0.00"}}]
[null,"Dodatkowe odbitki",{"v":25,"d":"25.00"},{"v":25,"d":"25.00"},{"$f":"'Strój-Wesele-Muzyka-Zdjęcia'!$C53-'Strój-Wesele-Muzyka-Zdjęcia'!$D53","v":{"v":0,"d":"0.00"}}]
[null,"Albumy fotograficzne",{"v":100,"d":"100.00"},{"v":100,"d":"100.00"},{"$f":"'Strój-Wesele-Muzyka-Zdjęcia'!$C54-'Strój-Wesele-Muzyka-Zdjęcia'!$D54","v":{"v":0,"d":"0.00"}}]
[null,"Rejestracja wideo",{"v":200,"d":"200.00"},{"v":150,"d":"150.00"},{"$f":"'Strój-Wesele-Muzyka-Zdjęcia'!$C55-'Strój-Wesele-Muzyka-Zdjęcia'!$D55","v":{"v":50,"d":"50.00"}}]
[null,"Fotografie — suma",{"$f":"SUBTOTAL(109,Fotografie[SZACOWANE])","v":{"v":1625,"d":"1,625.00"}},{"$f":"SUBTOTAL(109,Fotografie[RZECZYWISTE])","v":{"v":1575,"d":"1,575.00"}},{"$f":"SUBTOTAL(109,Fotografie[POWYŻEJ/PONIŻEJ])","v":{"v":50,"d":"50.00"}}]

{"sheet":"Dekoracje-Kwiaty-Prezent-Podróż","index":3,"n_rows":48,"n_cols":5,"rows_kept":48,"merged":[[8,1,8,4],[9,1,9,4],[18,1,18,4],[27,1,27,4],[34,1,34,4]]}
["Wprowadź szacowane i rzeczywiste koszty dla każdej kategoria w odpowiednich tabelach w tym arkuszu. Kwota różnicy względem budżetu jest obliczana automatycznie. Etykieta Dekoracje znajduje się w komórce z prawej strony. W komórkach w tej kolumnie podano przydatne instrukcje na temat korzystania z tego arkusza. Naciśnij klawisz Strzałka w dół, aby rozpocząć.","Dekoracje*"]
["Wprowadź koszty dekoracji (oprócz kosztów kwiatów) w tabeli, zaczynając od komórki z prawej strony. Dalsze instrukcje znajdują się w komórce A11.","KATEGORIA","SZACOWANE","RZECZYWISTE","POWYŻEJ/PONIŻEJ"]
[null,"Kokardy na krzesła",{"v":0,"d":"0.00"},{"v":0,"d":"0.00"},{"$f":"'Dekoracje-Kwiaty-Prezent-Podróż'!$C3-'Dekoracje-Kwiaty-Prezent-Podróż'!$D3","v":{"v":0,"d":"0.00"}}]
[null,"Ozdoby na stół",{"v":300,"d":"300.00"},{"v":320,"d":"320.00"},{"$f":"'Dekoracje-Kwiaty-Prezent-Podróż'!$C4-'Dekoracje-Kwiaty-Prezent-Podróż'!$D4","v":{"v":-20,"d":"-20.00 "}}]
[null,"Świece",{"v":100,"d":"100.00"},{"v":75,"d":"75.00"},{"$f":"'Dekoracje-Kwiaty-Prezent-Podróż'!$C5-'Dekoracje-Kwiaty-Prezent-Podróż'!$D5","v":{"v":25,"d":"25.00"}}]
[null,"Oświetlenie",{"v":100,"d":"100.00"},{"v":75,"d":"75.00"},{"$f":"'Dekoracje-Kwiaty-Prezent-Podróż'!$C6-'Dekoracje-Kwiaty-Prezent-Podróż'!$D6","v":{"v":25,"d":"25.00"}}]
[null,"Balony",{"v":200,"d":"200.00"},{"v":250,"d":"250.00"},{"$f":"'Dekoracje-Kwiaty-Prezent-Podróż'!$C7-'Dekoracje-Kwiaty-Prezent-Podróż'!$D7","v":{"v":-50,"d":"-50.00 "}}]
[null,"Dekoracje — suma",{"$f":"SUBTOTAL(109,Dekoracje[SZACOWANE])","v":{"v":700,"d":"700.00"}},{"$f":"SUBTOTAL(109,Dekoracje[RZECZYWISTE])","v":{"v":720,"d":"720.00"}},{"$f":"SUBTOTAL(109,Dekoracje[POWYŻEJ/PONIŻEJ])","v":{"v":-20,"d":"-20.00 "}}]
[null,"* Oprócz kwiatów"]
[]
["Etykieta Kwiaty znajduje się w komórce z prawej strony.","Kwiaty"]
["Wprowadź szczegóły w tabeli Kwiaty, zaczynając od komórki z prawej strony. Dalsze instrukcje znajdują się w komórce A20.","KATEGORIA","SZACOWANE","RZECZYWISTE","POWYŻEJ/PONIŻEJ"]
[null,"Bukiety",{"v":500,"d":"500.00"},{"v":450,"d":"450.00"},{"$f":"'Dekoracje-Kwiaty-Prezent-Podróż'!$C13-'Dekoracje-Kwiaty-Prezent-Podróż'!$D13","v":{"v":50,"d":"50.00"}}]
[null,"Kwiaty do butonierek",{"v":0,"d":"0.00"},{"v":0,"d":"0.00"},{"$f":"'Dekoracje-Kwiaty-Prezent-Podróż'!$C14-'Dekoracje-Kwiaty-Prezent-Podróż'!$D14","v":{"v":0,"d":"0.00"}}]
[null,"Bukieciki do sukienek",{"v":0,"d":"0.00"},{"v":0,"d":"0.00"},{"$f":"'Dekoracje-Kwiaty-Prezent-Podróż'!$C15-'Dekoracje-Kwiaty-Prezent-Podróż'!$D15","v":{"v":0,"d":"0.00"}}]
[null,"Ceremonia",{"v":400,"d":"400.00"},{"v":400,"d":"400.00"},{"$f":"'Dekoracje-Kwiaty-Prezent-Podróż'!$C16-'Dekoracje-Kwiaty-Prezent-Podróż'!$D16","v":{"v":0,"d":"0.00"}}]
[null,"Wesele",{"v":0,"d":"0.00"},{"v":0,"d":"0.00"},{"$f":"'Dekoracje-Kwiaty-Prezent-Podróż'!$C17-'Dekoracje-Kwiaty-Prezent-Podróż'!$D17","v":{"v":0,"d":"0.00"}}]
[null,"Kwiaty — suma",{"$f":"SUBTOTAL(109,Kwiaty[SZACOWANE])","v":{"v":900,"d":"900.00"}},{"$f":"SUBTOTAL(109,Kwiaty[RZECZYWISTE])","v":{"v":850,"d":"850.00"}},{"$f":"SUBTOTAL(109,Kwiaty[POWYŻEJ/PONIŻEJ])","v":{"v":50,"d":"50.00"}}]
[]
["Etykieta Prezenty znajduje się w komórce z prawej strony.","Prezenty"]
["Wprowadź szczegóły w tabeli Prezenty, zaczynając od komórki z prawej strony. Dalsze instrukcje znajdują się w komórce A29.","KATEGORIA","SZACOWANE","RZECZYWISTE","POWYŻEJ/PONIŻEJ"]
[null,"Druhny i drużbowie",{"v":1000,"d":"1,000.00"},{"v":400,"d":"400.00"},{"$f":"'Dekoracje-Kwiaty-Prezent-Podróż'!$C22-'Dekoracje-Kwiaty-Prezent-Podróż'!$D22","v":{"v":600,"d":"600.00"}}]
[null,"Panna młoda",{"v":150,"d":"150.00"},{"v":200,"d":"200.00"},{"$f":"'Dekoracje-Kwiaty-Prezent-Podróż'!$C23-'Dekoracje-Kwiaty-Prezent-Podróż'!$D23","v":{"v":-50,"d":"-50.00 "}}]
[null,"Pan młody",{"v":150,"d":"150.00"},{"v":200,"d":"200.00"},{"$f":"'Dekoracje-Kwiaty-Prezent-Podróż'!$C24-'Dekoracje-Kwiaty-Prezent-Podróż'!$D24","v":{"v":-50,"d":"-50.00 "}}]
[null,"Rodzice",{"v":25,"d":"25.00"},{"v":25,"d":"25.00"},{"$f":"'Dekoracje-Kwiaty-Prezent-Podróż'!$C25-'Dekoracje-Kwiaty-Prezent-Podróż'!$D25","v":{"v":0,"d":"0.00"}}]
[null,"Inni uczestnicy",{"v":20,"d":"20.00"},{"v":250,"d":"250.00"},{"$f":"'Dekoracje-Kwiaty-Prezent-Podróż'!$C26-'Dekoracje-Kwiaty-Prezent-Podróż'!$D26","v":{"v":-230,"d":"-230.00 "}}]
[null,"Prezenty — suma",{"$f":"SUBTOTAL(109,Prezenty[SZACOWANE])","v":{"v":1345,"d":"1,345.00"}},{"$f":"SUBTOTAL(109,Prezenty[RZECZYWISTE])","v":{"v":1075,"d":"1,075.00"}},{"$f":"SUBTOTAL(109,Prezenty[POWYŻEJ/PONIŻEJ])","v":{"v":270,"d":"270.00"}}]
[]
["Etykieta Przejazdy lub transport znajduje się w komórce z prawej strony.","Przejazdy/transport"]
["Wprowadź szczegóły w tabeli Podróże, zaczynając od komórki z prawej strony. Dalsze instrukcje znajdują się w komórce A36.","KATEGORIA","SZACOWANE","RZECZYWISTE","POWYŻEJ/PONIŻEJ"]
[null,"Limuzyny",{"v":100,"d":"100.00"},{"v":125,"d":"125.00"},{"$f":"'Dekoracje-Kwiaty-Prezent-Podróż'!$C31-'Dekoracje-Kwiaty-Prezent-Podróż'!$D31","v":{"v":-25,"d":"-25.00 "}}]
[null,"Parking",{"v":0,"d":"0.00"},{"v":40,"d":"40.00"},{"$f":"'Dekoracje-Kwiaty-Prezent-Podróż'!$C32-'Dekoracje-Kwiaty-Prezent-Podróż'!$D32","v":{"v":-40,"d":"-40.00 "}}]
[null,"Taksówki",{"v":0,"d":"0.00"},{"v":0,"d":"0.00"},{"$f":"'Dekoracje-Kwiaty-Prezent-Podróż'!$C33-'Dekoracje-Kwiaty-Prezent-Podróż'!$D33","v":{"v":0,"d":"0.00"}}]
[null,"Przejazdy/transport — suma",{"$f":"SUBTOTAL(109,Podróże[SZACOWANE])","v":{"v":100,"d":"100.00"}},{"$f":"SUBTOTAL(109,Podróże[RZECZYWISTE])","v":{"v":165,"d":"165.00"}},{"$f":"SUBTOTAL(109,Podróże[POWYŻEJ/PONIŻEJ])","v":{"v":-65,"d":"-65.00 "}}]
[]
["Etykieta Inne wydatki znajduje się w komórce z prawej strony.","Inne wydatki"]
["Wprowadź szczegóły w tabeli Inne wydatki, zaczynając od komórki z prawej strony.","KATEGORIA","SZACOWANE","RZECZYWISTE","POWYŻEJ/PONIŻEJ"]
[null,"Osoba udzielająca ślubu",{"v":0,"d":"0.00"},{"v":0,"d":"0.00"},{"$f":"'Dekoracje-Kwiaty-Prezent-Podróż'!$C38-'Dekoracje-Kwiaty-Prezent-Podróż'!$D38","v":{"v":0,"d":"0.00"}}]
[null,"Opłata za kościół/miejsce ślubu",{"v":40,"d":"40.00"},{"v":55,"d":"55.00"},{"$f":"'Dekoracje-Kwiaty-Prezent-Podróż'!$C39-'Dekoracje-Kwiaty-Prezent-Podróż'!$D39","v":{"v":-15,"d":"-15.00 "}}]
[null,"Organizator ceremonii",{"v":0,"d":"0.00"},{"v":0,"d":"0.00"},{"$f":"'Dekoracje-Kwiaty-Prezent-Podróż'!$C40-'Dekoracje-Kwiaty-Prezent-Podróż'!$D40","v":{"v":0,"d":"0.00"}}]
[null,"Próba generalna",{"v":450,"d":"450.00"},{"v":450,"d":"450.00"},{"$f":"'Dekoracje-Kwiaty-Prezent-Podróż'!$C41-'Dekoracje-Kwiaty-Prezent-Podróż'!$D41","v":{"v":0,"d":"0.00"}}]
[null,"Przyjęcie zaręczynowe",{"v":20,"d":"20.00"},{"v":50,"d":"50.00"},{"$f":"'Dekoracje-Kwiaty-Prezent-Podróż'!$C42-'Dekoracje-Kwiaty-Prezent-Podróż'!$D42","v":{"v":-30,"d":"-30.00 "}}]
[null,"Confetti",{"v":30,"d":"30.00"},{"v":20,"d":"20.00"},{"$f":"'Dekoracje-Kwiaty-Prezent-Podróż'!$C43-'Dekoracje-Kwiaty-Prezent-Podróż'!$D43","v":{"v":10,"d":"10.00"}}]
[null,"Fryzjer/kosmetyczka",{"v":45,"d":"45.00"},{"v":46,"d":"46.00"},{"$f":"'Dekoracje-Kwiaty-Prezent-Podróż'!$C44-'Dekoracje-Kwiaty-Prezent-Podróż'!$D44","v":{"v":-1,"d":"-1.00 "}}]
[null,"Wieczór panieński/kawalerski",{"v":0,"d":"0.00"},{"v":0,"d":"0.00"},{"$f":"'Dekoracje-Kwiaty-Prezent-Podróż'!$C45-'Dekoracje-Kwiaty-Prezent-Podróż'!$D45","v":{"v":0,"d":"0.00"}}]
[null,"Śniadanie",{"v":300,"d":"300.00"},{"v":400,"d":"400.00"},{"$f":"'Dekoracje-Kwiaty-Prezent-Podróż'!$C46-'Dekoracje-Kwiaty-Prezent-Podróż'!$D46","v":{"v":-100,"d":"-100.00 "}}]
[null,"Pokoje hotelowe",{"v":0,"d":"0.00"},{"v":0,"d":"0.00"},{"$f":"'Dekoracje-Kwiaty-Prezent-Podróż'!$C47-'Dekoracje-Kwiaty-Prezent-Podróż'!$D47","v":{"v":0,"d":"0.00"}}]
[null,"Inne wydatki — suma",{"$f":"SUBTOTAL(109,Inne_wydatki[SZACOWANE])","v":{"v":885,"d":"885.00"}},{"$f":"SUBTOTAL(109,Inne_wydatki[RZECZYWISTE])","v":{"v":1021,"d":"1,021.00"}},{"$f":"SUBTOTAL(109,Inne_wydatki[POWYŻEJ/PONIŻEJ])","v":{"v":-136,"d":"-136.00 "}}]